bitfinex-derivatives/quotes_BTCF0:USTF0_20260106
["timestamp","ask_amount","ask_price","bid_price","bid_amount"]
[1767692480766,0.010699,93501.0,93487.0,0.4]
[1767692480978,0.0107,93499.0,93487.0,0.4]
[1767692481270,0.0107,93499.0,93486.0,0.09096]
[1767692481470,0.0107,93499.0,93487.0,0.4]
[1767692483669,0.09121797,93502.0,93487.0,0.410701]
[1767692483871,0.09121797,93502.0,93487.0,0.010701]
[1767692484169,0.010699,93503.0,93487.0,0.01207213]
[1767692485271,0.11233519,93507.0,93489.0,0.010701]
[1767692486275,0.11233519,93507.0,93491.0,0.010701]
[1767692487377,0.09121797,93507.0,93489.0,0.00106879]
[1767692487670,0.09096,93514.0,93502.0,0.010699]
[1767692488776,0.09096,93514.0,93494.0,0.00106879]
[1767692488972,0.18217797,93514.0,93494.0,0.00106879]
[1767692489172,0.18217797,93514.0,93504.0,0.010699]
[1767692489470,0.18217797,93514.0,93502.0,0.010699]
[1767692491378,0.18217797,93514.0,93504.0,0.010699]
[1767692493176,0.09121797,93514.0,93504.0,0.010699]
[1767692493376,0.10424648,93520.0,93506.0,0.010699]
[1767692493682,0.10586204,93523.0,93508.0,0.010699]
[1767692494475,0.010696,93528.0,93509.0,0.00109423]
[1767692494674,0.010696,93528.0,93512.0,0.010698]
[1767692494875,0.09516504,93525.0,93509.0,0.010698]
[1767692495080,0.11494348,93525.0,93509.0,0.010698]
[1767692495369,0.010697,93523.0,93506.0,0.010699]
[1767692495574,0.010697,93521.0,93506.0,0.010699]
[1767692496579,0.010697,93520.0,93505.0,0.09096]
[1767692496982,0.10424648,93523.0,93505.0,0.09096]
[1767692497374,0.10424648,93519.0,93505.0,0.09096]
[1767692498779,0.010698,93515.0,93505.0,0.09096]
[1767692500685,0.09516504,93524.0,93506.0,0.00064082]
[1767692500886,0.010697,93520.0,93506.0,0.00064082]
[1767692501288,0.010697,93520.0,93505.0,0.101659]
[1767692501989,0.010697,93520.0,93507.0,0.010699]
[1767692502490,0.010697,93523.0,93510.0,0.09890669]
[1767692502791,0.10586204,93523.0,93510.0,0.09890669]
[1767692503688,0.010697,93522.0,93510.0,0.09890669]
[1767692505091,0.09516504,93523.0,93510.0,0.10960469]
[1767692505790,0.09516504,93523.0,93510.0,0.09890669]
[1767692509281,0.10586204,93523.0,93510.0,0.09890669]
[1767692509782,0.010697,93522.0,93508.0,0.010699]
[1767692509976,0.010697,93522.0,93510.0,0.09890669]
[1767692510182,0.01977744,93528.0,93515.0,0.010698]
[1767692510381,0.09516504,93535.0,93523.0,0.010697]
[1767692510581,0.010695,93540.0,93525.0,0.09890669]
[1767692510786,0.010695,93540.0,93523.0,0.010697]
[1767692510996,0.0973032,93539.0,93523.0,0.010697]
[1767692511291,0.0973032,93539.0,93520.0,0.09930218]
[1767692511292,0.09516504,93537.0,93525.0,0.010697]
[1767692511493,0.09516504,93537.0,93526.0,0.010696]
[1767692512791,0.09516504,93537.0,93523.0,0.010697]
[1767692512989,0.09516504,93537.0,93525.0,0.010697]
[1767692513390,0.09516504,93537.0,93526.0,0.010696]
[1767692514497,0.00213816,93539.0,93530.0,0.010696]
[1767692514694,0.09516504,93543.0,93530.0,0.010696]
[1767692516097,0.09516504,93543.0,93529.0,0.09890669]
[1767692516098,0.09516504,93543.0,93529.0,0.10960269]
[1767692516294,0.09516504,93543.0,93531.0,0.010696]
[1767692517501,0.09516504,93543.0,93530.0,0.09890669]
[1767692517902,0.11494148,93543.0,93530.0,0.09890669]
[1767692518104,0.09516504,93539.0,93526.0,0.09096]
[1767692518300,0.11494148,93539.0,93526.0,0.09096]
[1767692519320,0.10586004,93536.0,93526.0,0.09096]
[1767692519513,0.00908144,93535.0,93526.0,0.09096]
[1767692519910,0.10586004,93536.0,93526.0,0.09096]
[1767692520114,0.09516504,93536.0,93526.0,0.09096]
[1767692521820,0.10576118,93534.0,93524.0,0.09096]
[1767692522022,0.010696,93532.0,93520.0,0.09890669]
[1767692522223,0.010696,93532.0,93521.0,0.09096]
[1767692522724,0.09506518,93534.0,93521.0,0.09096]
[1767692523018,0.10425925,93528.0,93514.0,0.010698]
[1767692523225,0.10425925,93524.0,93516.0,0.010698]
[1767692523622,0.10425925,93524.0,93515.0,0.09096]
[1767692523824,0.09506518,93524.0,93515.0,0.09096]
[1767692524619,0.09506518,93524.0,93513.0,0.010698]
[1767692524819,0.09506518,93524.0,93514.0,0.09096]
[1767692527423,0.09506518,93524.0,93514.0,0.101658]
[1767692529431,0.09506518,93524.0,93514.0,0.09096]
[1767692529729,0.11495625,93524.0,93514.0,0.09096]
[1767692530234,0.10425925,93524.0,93514.0,0.09096]
[1767692531832,0.010697,93523.0,93514.0,0.09096]
[1767692532423,0.010697,93521.0,93514.0,0.09096]
[1767692532833,0.11495625,93524.0,93514.0,0.09096]
[1767692533018,0.010697,93522.0,93514.0,0.09096]
[1767692533220,0.10425925,93524.0,93514.0,0.09096]
[1767692533925,0.010697,93523.0,93514.0,0.09096]
[1767692534524,0.09506518,93524.0,93514.0,0.09096]
[1767692540437,0.010697,93523.0,93514.0,0.09096]
[1767692541532,0.09506518,93524.0,93514.0,0.09096]
[1767692543536,0.010697,93523.0,93514.0,0.09096]
[1767692544539,0.09506518,93524.0,93514.0,0.09096]
[1767692545444,0.010697,93523.0,93514.0,0.09096]
[1767692545631,0.09506518,93524.0,93514.0,0.09096]
[1767692545833,0.010697,93526.0,93514.0,0.09096]
[1767692550943,0.010697,93525.0,93514.0,0.09096]
[1767692553845,0.010698,93518.0,93509.0,0.00213884]
[1767692554045,0.010698,93517.0,93509.0,0.00213884]
[1767692554348,0.010698,93517.0,93510.0,0.09096]
[1767692554737,0.010698,93517.0,93509.0,0.00213884]
[1767692554937,0.010698,93511.0,93502.0,0.09096]
[1767692556141,0.010698,93513.0,93502.0,0.09096]
[1767692557738,0.010698,93513.0,93501.0,0.08614256]
[1767692557944,0.10168139,93516.0,93502.0,0.09096]
[1767692558144,0.010698,93514.0,93502.0,0.09096]
[1767692558946,0.10023971,93529.0,93505.0,0.0961808]
[1767692559139,0.010697,93524.0,93510.0,0.09890669]
[1767692559648,0.11093571,93527.0,93510.0,0.09890669]
[1767692560040,0.010696,93533.0,93517.0,0.10960369]
[1767692560241,0.010696,93533.0,93520.0,0.09890669]
[1767692560242,0.010696,93529.0,93520.0,0.09890669]
[1767692560441,0.010696,93529.0,93514.0,0.0011985]
[1767692560641,0.010696,93529.0,93513.0,0.010698]
[1767692561148,0.10167939,93532.0,93515.0,0.010698]
[1767692561447,0.09098339,93532.0,93520.0,0.09890669]
[1767692561650,0.09096,93533.0,93520.0,0.09890669]
[1767692562550,0.09096,93533.0,93517.0,0.010698]
[1767692562748,0.10023971,93518.0,93502.0,0.0765512]
[1767692562950,0.10023971,93507.0,93496.0,0.09096]
[1767692563137,0.010698,93514.0,93490.0,0.08718825]
[1767692563138,0.010699,93500.0,93490.0,0.09096]
[1767692563343,0.09098339,93501.0,93487.0,0.09096]
[1767692563644,0.09098339,93501.0,93486.0,0.09096]
[1767692564038,0.010699,93503.0,93486.0,0.09096]
[1767692564351,0.010699,93501.0,93486.0,0.09096]
[1767692564651,0.010699,93504.0,93486.0,0.101661]
[1767692564845,0.010699,93502.0,93486.0,0.101661]
[1767692565451,0.010699,93502.0,93486.0,0.10567222]
[1767692565650,0.010699,93505.0,93486.0,0.10567222]
[1767692565847,0.010699,93505.0,93487.0,0.00401122]
[1767692566047,0.010699,93505.0,93488.0,0.010701]
[1767692566445,0.010699,93505.0,93488.0,0.01458891]
[1767692566641,0.09098339,93506.0,93490.0,0.010701]
[1767692566847,0.010699,93508.0,93493.0,0.00388791]
[1767692569456,0.010698,93511.0,93495.0,0.00311062]
[1767692572357,0.010699,93508.0,93494.0,0.09096]
[1767692572747,0.010699,93508.0,93494.0,0.09362695]
[1767692576959,0.010699,93506.0,93494.0,0.09362695]
[1767692577565,0.010699,93506.0,93494.0,0.09096]
[1767692578449,0.01283784,93509.0,93494.0,0.10166]
[1767692580965,0.00213884,93509.0,93496.0,0.0107]
[1767692581166,0.00213884,93509.0,93494.0,0.09250192]
[1767692581864,0.01283684,93509.0,93494.0,0.09250192]
[1767692586571,0.00213884,93509.0,93494.0,0.09250192]
[1767692586871,0.00213884,93509.0,93498.0,0.0107]
[1767692587371,0.00213884,93509.0,93495.0,0.00098879]
[1767692587372,0.00213884,93509.0,93496.0,0.0107]
[1767692587774,0.00213884,93509.0,93495.0,0.00098879]
[1767692588067,0.01283784,93509.0,93495.0,0.00098879]
[1767692588272,0.00213884,93509.0,93494.0,0.09096]
[1767692589177,0.010699,93508.0,93494.0,0.09096]
[1767692590277,0.010699,93506.0,93494.0,0.09096]
[1767692593466,0.010699,93508.0,93494.0,0.09096]
[1767692593666,0.010699,93508.0,93494.0,0.10166]
[1767692594074,0.010699,93508.0,93494.0,0.10195761]
[1767692594577,0.00213884,93509.0,93494.0,0.09125761]
[1767692594765,0.00213884,93509.0,93496.0,0.0107]
[1767692597474,0.00213884,93509.0,93497.0,0.0107]
[1767692597873,0.00213884,93509.0,93494.0,0.09096]
[1767692598174,0.09096,93516.0,93495.0,0.09233027]
[1767692598476,0.09096,93516.0,93504.0,0.010699]
[1767692598680,0.09096,93516.0,93506.0,0.010699]
[1767692598871,0.01092843,93526.0,93508.0,0.010699]
[1767692598872,0.010697,93526.0,93508.0,0.010699]
[1767692599173,0.101657,93526.0,93508.0,0.010699]
[1767692599377,0.101657,93526.0,93504.0,0.09096]
[1767692599677,0.101657,93526.0,93505.0,0.09233027]
[1767692599878,0.010697,93524.0,93505.0,0.09233027]
[1767692601380,0.010697,93524.0,93508.0,0.010699]
[1767692604574,0.010697,93524.0,93510.0,0.010698]
[1767692608678,0.10641742,93527.0,93510.0,0.010698]
[1767692608985,0.010697,93525.0,93510.0,0.010698]
[1767692616881,0.10087788,93525.0,93510.0,0.010698]
[1767692617886,0.010697,93523.0,93510.0,0.010698]
[1767692618780,0.10004542,93523.0,93498.0,0.09427495]
[1767692619080,0.09018088,93512.0,93492.0,0.09427495]
[1767692619286,0.09018088,93512.0,93498.0,0.0107]
[1767692619478,0.09018088,93512.0,93493.0,0.09096]
[1767692619786,0.10004542,93518.0,93494.0,0.09427495]
[1767692619972,0.10004542,93518.0,93504.0,0.010699]
[1767692621286,0.11074342,93518.0,93502.0,0.010699]
[1767692621584,0.010698,93516.0,93502.0,0.010699]
[1767692622388,0.010698,93516.0,93499.0,0.010699]
[1767692622580,0.010698,93516.0,93500.0,0.010699]
[1767692624490,0.010698,93516.0,93500.0,0.10963245]
[1767692624877,0.10004542,93518.0,93500.0,0.18989345]
[1767692624878,0.010698,93514.0,93500.0,0.18989345]
[1767692625075,0.010698,93512.0,93500.0,0.18989345]
[1767692626491,0.010698,93515.0,93500.0,0.18989345]
[1767692626691,0.010698,93515.0,93501.0,0.010699]
[1767692628690,0.10004542,93518.0,93500.0,0.18989345]
[1767692630190,0.10004542,93518.0,93503.0,0.010699]
[1767692630790,0.010698,93516.0,93501.0,0.010699]
[1767692630995,0.010698,93516.0,93502.0,0.010699]
[1767692634498,0.10004542,93518.0,93500.0,0.18989345]
[1767692635288,0.10004542,93518.0,93500.0,0.09096]
[1767692635490,0.10004542,93518.0,93500.0,0.18989345]
[1767692637395,0.10004542,93518.0,93505.0,0.010699]
[1767692641297,0.10004542,93518.0,93500.0,0.18989345]
[1767692641492,0.10004542,93518.0,93508.0,0.09893345]
[1767692641991,0.09018088,93518.0,93508.0,0.09893345]
[1767692643199,0.09018088,93518.0,93509.0,0.010698]
[1767692643497,0.09952556,93518.0,93500.0,0.18989345]
[1767692643799,0.10012172,93516.0,93503.0,0.010699]
[1767692647404,0.10012172,93516.0,93505.0,0.010699]
[1767692654804,0.10012172,93516.0,93507.0,0.010699]
[1767692656001,0.10012172,93516.0,93505.0,0.010699]
[1767692657909,0.0902861,93514.0,93505.0,0.010699]
[1767692658606,0.0902861,93514.0,93503.0,0.010699]
[1767692659707,0.10012172,93514.0,93503.0,0.010699]
[1767692659912,0.0902861,93512.0,93500.0,0.18989345]
[1767692660306,0.0902861,93512.0,93501.0,0.010699]
[1767692660606,0.0902861,93512.0,93505.0,0.010699]
[1767692660801,0.0902861,93512.0,93500.0,0.18989345]
[1767692661408,0.0902861,93512.0,93506.0,0.010699]
[1767692661611,0.00983562,93521.0,93507.0,0.010699]
[1767692661809,0.00983562,93521.0,93510.0,0.09893345]
[1767692663619,0.10012172,93519.0,93510.0,0.09893345]
[1767692663809,0.00983562,93518.0,93510.0,0.09893345]
[1767692664211,0.10012172,93518.0,93510.0,0.09893345]
[1767692664417,0.00983562,93517.0,93510.0,0.09893345]
[1767692666917,0.00983562,93517.0,93508.0,0.010698]
[1767692668517,0.0902861,93518.0,93508.0,0.010698]
[1767692669014,0.010697,93524.0,93508.0,0.09893345]
[1767692669319,0.00983562,93522.0,93508.0,0.09893345]
[1767692669519,0.00983562,93521.0,93508.0,0.09893345]
[1767692670217,0.00983562,93521.0,93510.0,0.010698]
[1767692671212,0.09893345,93540.0,93508.0,0.09893345]
[1767692671213,0.00975124,93524.0,93508.0,0.09893345]
[1767692671419,0.101656,93529.0,93501.0,0.010699]
[1767692671420,0.00975124,93529.0,93514.0,0.10963145]
[1767692671612,0.00975124,93529.0,93519.0,0.09893345]
[1767692672122,0.00975124,93529.0,93516.0,0.010698]
[1767692672822,0.00975124,93529.0,93514.0,0.010698]
[1767692673028,0.010697,93526.0,93510.0,0.09893345]
[1767692674224,0.010697,93526.0,93511.0,0.010698]
[1767692674523,0.02044824,93526.0,93511.0,0.010698]
[1767692675920,0.00975124,93526.0,93513.0,0.010698]
[1767692677723,0.00975124,93526.0,93511.0,0.010698]
[1767692678326,0.00975124,93526.0,93513.0,0.010698]
[1767692688942,0.00975124,93526.0,93511.0,0.010698]
[1767692690648,0.00975124,93526.0,93512.0,0.010698]
[1767692694242,0.00975124,93526.0,93513.0,0.010698]
[1767692697546,0.02044824,93526.0,93511.0,0.010698]
[1767692700249,0.010697,93525.0,93511.0,0.010698]
[1767692701250,0.00975124,93526.0,93509.0,0.09096]
[1767692701455,0.010698,93518.0,93509.0,0.09096]
[1767692701651,0.02057869,93520.0,93509.0,0.09096]
[1767692701852,0.010697,93520.0,93509.0,0.09096]
[1767692702055,0.010697,93522.0,93509.0,0.09096]
[1767692703255,0.00988169,93523.0,93510.0,0.010698]
[1767692706155,0.00988169,93523.0,93512.0,0.010698]
[1767692707746,0.02057869,93523.0,93509.0,0.101658]
[1767692707947,0.010697,93521.0,93509.0,0.09096]
[1767692710352,0.010698,93517.0,93504.0,0.010699]
[1767692710557,0.00976332,93513.0,93505.0,0.09096]
[1767692710745,0.10587224,93505.0,93491.0,0.07655138]
[1767692710950,0.00976332,93501.0,93488.0,0.010701]
[1767692711155,0.02046232,93501.0,93489.0,0.09096]
[1767692711355,0.00976332,93501.0,93489.0,0.08596]
[1767692711561,0.010699,93500.0,93484.0,0.010701]
[1767692711753,0.0107,93499.0,93488.0,0.09096]
[1767692711952,0.0107,93500.0,93488.0,0.09096]
[1767692712458,0.10587224,93501.0,93489.0,0.010701]
[1767692713055,0.02046232,93505.0,93489.0,0.010701]
[1767692713359,0.00976332,93504.0,93489.0,0.010701]
[1767692715552,0.10587224,93504.0,93489.0,0.010701]
[1767692715957,0.00976332,93503.0,93488.0,0.09096]
[1767692716159,0.00976332,93502.0,93488.0,0.09096]
[1767692716348,0.00976332,93498.0,93481.0,0.08437197]
[1767692716553,0.00976332,93498.0,93482.0,0.09096]
[1767692717563,0.0107,93497.0,93482.0,0.09096]
[1767692718763,0.0107,93495.0,93482.0,0.09096]
[1767692719066,0.00976332,93498.0,93482.0,0.09096]
[1767692719263,0.0107,93497.0,93482.0,0.09096]
[1767692719656,0.0107,93495.0,93482.0,0.09096]
[1767692720064,0.10587224,93498.0,93479.0,0.00213953]
[1767692720263,0.010699,93506.0,93480.0,0.09096]
[1767692720264,0.00976332,93495.0,93480.0,0.09096]
[1767692720455,0.0107,93492.0,93480.0,0.09096]
[1767692721265,0.0107,93495.0,93480.0,0.09096]
[1767692721563,0.0107,93493.0,93480.0,0.09096]
[1767692729071,0.010701,93492.0,93479.0,0.00213953]
[1767692729270,0.010701,93492.0,93480.0,0.09096]
[1767692729967,0.02046332,93495.0,93480.0,0.09096]
[1767692730158,0.02046332,93495.0,93480.0,0.101662]
[1767692730358,0.0107,93495.0,93480.0,0.101662]
[1767692730858,0.09610892,93496.0,93481.0,0.010702]
[1767692731168,0.09610892,93496.0,93483.0,0.010701]
[1767692734068,0.09610892,93496.0,93480.0,0.101662]
[1767692734262,0.09610892,93496.0,93482.0,0.010702]
[1767692736874,0.0107,93495.0,93482.0,0.010702]
[1767692737266,0.0107,93495.0,93480.0,0.101662]
[1767692738868,0.0107,93495.0,93482.0,0.010702]
[1767692739074,0.00936511,93503.0,93481.0,0.09321676]
[1767692739375,0.010699,93507.0,93482.0,0.010702]
[1767692739675,0.010699,93507.0,93491.0,0.010701]
[1767692740262,0.09096,93508.0,93496.0,0.0107]
[1767692741271,0.09096,93508.0,93488.0,0.09321676]
[1767692741475,0.010697,93516.0,93499.0,0.09321676]
[1767692741671,0.10935975,93520.0,93499.0,0.09321676]
[1767692741878,0.010697,93514.0,93499.0,0.09321676]
[1767692742070,0.010697,93514.0,93497.0,0.09321676]
[1767692742376,0.010697,93514.0,93497.0,0.10391576]
[1767692742966,0.09096,93521.0,93496.0,0.09096]
[1767692742967,0.010696,93520.0,93503.0,0.010698]
[1767692745482,0.010696,93518.0,93500.0,0.10391476]
[1767692745677,0.010697,93516.0,93500.0,0.10391476]
[1767692748381,0.010697,93514.0,93500.0,0.10391476]
[1767692748582,0.010697,93514.0,93504.0,0.09892363]
[1767692751184,0.010697,93517.0,93504.0,0.09892363]
[1767692751382,0.010697,93517.0,93507.0,0.09892363]
[1767692752787,0.00936511,93520.0,93507.0,0.09892363]
[1767692752983,0.00936511,93520.0,93510.0,0.09892363]
[1767692753286,0.010697,93515.0,93510.0,0.09892363]
[1767692753481,0.010697,93515.0,93505.0,0.09892363]
[1767692753677,0.09999464,93514.0,93500.0,0.09892363]
[1767692753883,0.010697,93512.0,93500.0,0.20058163]
[1767692754283,0.010697,93515.0,93500.0,0.20058163]
[1767692754786,0.010697,93515.0,93502.0,0.010698]
[1767692756589,0.010697,93515.0,93500.0,0.18988363]
[1767692756782,0.00936511,93517.0,93500.0,0.18988363]
[1767692757989,0.010697,93514.0,93501.0,0.010698]
[1767692759991,0.010697,93512.0,93501.0,0.010698]
[1767692760780,0.010697,93515.0,93502.0,0.010698]
[1767692761990,0.010697,93514.0,93502.0,0.010698]
[1767692762196,0.010697,93513.0,93502.0,0.010698]
[1767692762698,0.010697,93511.0,93500.0,0.18988363]
[1767692762898,0.09934068,93515.0,93500.0,0.18988363]
[1767692763400,0.010697,93509.0,93500.0,0.18988363]
[1767692764397,0.010697,93509.0,93500.0,0.09892363]
[1767692764690,0.00918325,93518.0,93500.0,0.18988363]
[1767692764895,0.00918325,93518.0,93500.0,0.09892363]
[1767692765193,0.00918325,93518.0,93502.0,0.010698]
[1767692765597,0.010697,93515.0,93502.0,0.010698]
[1767692765797,0.010697,93514.0,93502.0,0.010698]
[1767692768597,0.010697,93517.0,93504.0,0.010698]
[1767692770602,0.010697,93517.0,93506.0,0.010698]
[1767692771102,0.010697,93516.0,93503.0,0.010698]
[1767692771698,0.010697,93516.0,93504.0,0.010698]
[1767692774304,0.010697,93515.0,93504.0,0.010698]
[1767692776709,0.010697,93515.0,93502.0,0.010698]
[1767692776902,0.010697,93514.0,93502.0,0.010698]
[1767692778009,0.010697,93513.0,93500.0,0.20058163]
[1767692780409,0.010697,93513.0,93501.0,0.010698]
[1767692780606,0.00918325,93518.0,93502.0,0.010698]
[1767692780811,0.010696,93517.0,93505.0,0.010698]
[1767692782407,0.010696,93520.0,93508.0,0.010697]
[1767692782607,0.010696,93520.0,93510.0,0.09892363]
[1767692785710,0.09934068,93521.0,93510.0,0.09892363]
[1767692785913,0.010696,93519.0,93510.0,0.09892363]
[1767692786110,0.09934068,93518.0,93500.0,0.18988363]
[1767692786316,0.010697,93511.0,93500.0,0.18988363]
[1767692788710,0.010697,93509.0,93500.0,0.09096]
[1767692790818,0.010697,93509.0,93499.0,0.09892363]
[1767692791016,0.010697,93509.0,93499.0,0.18988363]
[1767692794314,0.010697,93513.0,93499.0,0.20058163]
[1767692794621,0.010697,93515.0,93499.0,0.18988363]
[1767692795822,0.010697,93515.0,93503.0,0.010698]
[1767692796129,0.010696,93518.0,93505.0,0.010698]
[1767692796623,0.010697,93516.0,93505.0,0.010698]
[1767692797323,0.010696,93518.0,93505.0,0.010698]
[1767692797519,0.10910532,93522.0,93509.0,0.010697]
[1767692800525,0.10910532,93522.0,93510.0,0.09892363]
[1767692801529,0.010696,93521.0,93510.0,0.09892363]
[1767692802629,0.00903921,93523.0,93507.0,0.010698]
[1767692802829,0.010696,93519.0,93510.0,0.09892363]
[1767692803637,0.010696,93518.0,93510.0,0.09892363]
[1767692804528,0.010696,93520.0,93510.0,0.09892363]
[1767692804731,0.010696,93522.0,93510.0,0.09892363]
[1767692805229,0.010696,93518.0,93510.0,0.09892363]
[1767692805933,0.010696,93521.0,93510.0,0.09892363]
[1767692806136,0.010696,93523.0,93510.0,0.2029251]
[1767692808536,0.010696,93523.0,93510.0,0.10400147]
[1767692809335,0.010696,93521.0,93510.0,0.10400147]
[1767692809542,0.010696,93521.0,93510.0,0.09330447]
[1767692813642,0.09096,93529.0,93510.0,0.09330447]
[1767692814041,0.010697,93517.0,93505.0,0.10400247]
[1767692814541,0.010697,93516.0,93505.0,0.09330447]
[1767692820842,0.010696,93519.0,93505.0,0.09330447]
[1767692821140,0.010696,93518.0,93505.0,0.09330447]
[1767692822543,0.00981191,93521.0,93504.0,0.09096]
[1767692822742,0.10248337,93520.0,93499.0,0.09014827]
[1767692822944,0.10248337,93512.0,93498.0,0.09096]
[1767692823151,0.00981191,93510.0,93493.0,0.09096]
[1767692823646,0.09267146,93511.0,93494.0,0.010699]
[1767692824549,0.010697,93513.0,93493.0,0.09096]
[1767692824742,0.09267146,93517.0,93494.0,0.09014827]
[1767692824947,0.09096,93519.0,93497.0,0.09014827]
[1767692825247,0.101656,93519.0,93503.0,0.010698]
[1767692825542,0.010696,93517.0,93503.0,0.010698]
[1767692826850,0.09096,93519.0,93497.0,0.09014827]
[1767692828153,0.09096,93519.0,93505.0,0.010698]
[1767692828551,0.010696,93518.0,93505.0,0.010698]
[1767692828845,0.09096,93519.0,93502.0,0.09014827]
[1767692829042,0.101656,93519.0,93505.0,0.010698]
[1767692829242,0.101656,93519.0,93507.0,0.010698]
[1767692830852,0.09096,93519.0,93507.0,0.010698]
[1767692831750,0.101656,93519.0,93507.0,0.010698]
[1767692832247,0.101656,93519.0,93500.0,0.09096]
[1767692832248,0.010696,93518.0,93500.0,0.09096]
[1767692832455,0.010697,93517.0,93501.0,0.010698]
[1767692833249,0.010697,93517.0,93503.0,0.010698]
[1767692834046,0.010697,93517.0,93504.0,0.010698]
[1767692834545,0.101656,93519.0,93505.0,0.010698]
[1767692834844,0.09096,93519.0,93507.0,0.010698]
[1767692835045,0.09096,93519.0,93501.0,0.010698]
[1767692835246,0.09096,93519.0,93501.0,0.10084627]
[1767692835449,0.09096,93519.0,93508.0,0.010697]
[1767692838552,0.010696,93520.0,93508.0,0.010697]
[1767692842160,0.02050791,93522.0,93501.0,0.10084627]
[1767692842358,0.02050791,93522.0,93509.0,0.010697]
[1767692842552,0.010696,93520.0,93509.0,0.010697]
[1767692842966,0.010696,93520.0,93507.0,0.010698]
[1767692843265,0.010696,93520.0,93505.0,0.010698]
[1767692843565,0.010696,93519.0,93505.0,0.010698]
[1767692844157,0.010696,93519.0,93501.0,0.09014827]
[1767692845167,0.010696,93519.0,93506.0,0.010698]
[1767692845359,0.10248337,93522.0,93506.0,0.010698]
[1767692845360,0.010696,93518.0,93506.0,0.010698]
[1767692848366,0.010696,93520.0,93501.0,0.09014827]
[1767692848565,0.010696,93520.0,93502.0,0.09014827]
[1767692848778,0.010696,93520.0,93509.0,0.010697]
[1767692850381,0.09267146,93522.0,93502.0,0.09014827]
[1767692851273,0.10180337,93522.0,93502.0,0.09014827]
[1767692851475,0.010697,93517.0,93505.0,0.010698]
[1767692852784,0.010697,93516.0,93505.0,0.010698]
[1767692852983,0.010697,93516.0,93503.0,0.010698]
[1767692853785,0.010697,93515.0,93503.0,0.010698]
[1767692854286,0.010697,93514.0,93501.0,0.010698]
[1767692854583,0.010696,93519.0,93500.0,0.09096]
[1767692854786,0.010698,93508.0,93500.0,0.09096]
[1767692854986,0.010697,93511.0,93500.0,0.09096]
[1767692857785,0.10799582,93520.0,93500.0,0.09096]
[1767692859188,0.010697,93509.0,93500.0,0.09096]
[1767692859383,0.10799582,93520.0,93500.0,0.09096]
[1767692859583,0.010697,93511.0,93500.0,0.09096]
[1767692860887,0.010697,93509.0,93500.0,0.09096]
[1767692861088,0.00913191,93519.0,93500.0,0.09096]
[1767692861390,0.010696,93518.0,93500.0,0.09096]
[1767692862189,0.010697,93510.0,93500.0,0.09096]
[1767692862390,0.010696,93518.0,93500.0,0.09096]
[1767692863193,0.010697,93510.0,93500.0,0.09096]
[1767692863384,0.010696,93518.0,93500.0,0.09096]
[1767692863791,0.010697,93511.0,93500.0,0.09096]
[1767692870501,0.010697,93511.0,93501.0,0.09892353]
[1767692873886,0.010697,93514.0,93501.0,0.09892353]
[1767692874086,0.010697,93514.0,93501.0,0.10962153]
[1767692874694,0.010697,93514.0,93504.0,0.09892353]
[1767692880497,0.010697,93513.0,93504.0,0.09892353]
[1767692880697,0.010697,93513.0,93503.0,0.09892353]
[1767692881193,0.010697,93512.0,93503.0,0.09892353]
[1767692881495,0.010697,93511.0,93503.0,0.09892353]
[1767692881998,0.010697,93511.0,93500.0,0.18988353]
[1767692883801,0.010697,93511.0,93500.0,0.09892353]
[1767692884100,0.010697,93511.0,93501.0,0.09096]
[1767692885404,0.010697,93513.0,93501.0,0.09096]
[1767692886903,0.010697,93513.0,93503.0,0.09892353]
[1767692888490,0.010697,93516.0,93503.0,0.09892353]
[1767692888700,0.010697,93516.0,93506.0,0.09892353]
[1767692889503,0.010697,93515.0,93506.0,0.09892353]
[1767692892408,0.00964262,93518.0,93501.0,0.09096]
[1767692892605,0.010697,93512.0,93501.0,0.09096]
[1767692894108,0.010697,93515.0,93501.0,0.09096]
[1767692895304,0.010697,93515.0,93505.0,0.09892353]
[1767692896503,0.010697,93515.0,93502.0,0.010698]
[1767692896703,0.010697,93515.0,93501.0,0.09096]
[1767692897309,0.010697,93513.0,93501.0,0.09096]
[1767692903612,0.010697,93516.0,93501.0,0.09096]
[1767692903813,0.010697,93516.0,93502.0,0.010698]
[1767692904016,0.010697,93515.0,93502.0,0.010698]
[1767692905318,0.010697,93515.0,93505.0,0.09892353]
[1767692907425,0.010696,93518.0,93505.0,0.09892353]
[1767692907617,0.10877428,93524.0,93510.0,0.09892353]
[1767692908016,0.010696,93521.0,93510.0,0.09892353]
[1767692909422,0.09096,93525.0,93510.0,0.09892353]
[1767692909629,0.09096,93525.0,93515.0,0.09892353]
[1767692910712,0.09096,93525.0,93511.0,0.010697]
[1767692911929,0.010696,93524.0,93511.0,0.010697]
[1767692912128,0.09096,93525.0,93510.0,0.09892353]
[1767692912534,0.010696,93519.0,93510.0,0.09892353]
[1767692913839,0.010696,93519.0,93506.0,0.09958048]
[1767692914026,0.010696,93519.0,93509.0,0.09892353]
[1767692914434,0.010696,93518.0,93509.0,0.09892353]
[1767692914635,0.010697,93516.0,93506.0,0.09958048]
[1767692914835,0.010697,93516.0,93506.0,0.19850401]
[1767692915735,0.010696,93519.0,93506.0,0.19850401]
[1767692915936,0.010696,93518.0,93509.0,0.09892353]
[1767692917244,0.00953066,93520.0,93501.0,0.09096]
[1767692917536,0.010697,93515.0,93501.0,0.09096]
[1767692917940,0.010697,93515.0,93501.0,0.101658]
[1767692922732,0.010697,93515.0,93505.0,0.09892353]
[1767692923741,0.010697,93515.0,93501.0,0.101658]
[1767692924042,0.010697,93515.0,93501.0,0.19219276]
[1767692924247,0.010696,93518.0,93502.0,0.010698]
[1767692925744,0.010696,93518.0,93503.0,0.010698]
[1767692926145,0.010696,93518.0,93508.0,0.09892353]
[1767692926747,0.010696,93520.0,93508.0,0.09892353]
[1767692928049,0.010696,93519.0,93510.0,0.09892353]
[1767692929950,0.010696,93519.0,93505.0,0.010698]
[1767692931051,0.010696,93518.0,93503.0,0.010698]
[1767692931251,0.010696,93518.0,93505.0,0.010698]